[Event "Early-Titled-Tuesday-Blitz-April-02-2024"]
[Site "Chess.com"]
[Date "2024.04.02"]
[Round "5"]
[White "ValentinDragnev"]
[Black "guillembaches"]
[Result "1-0"]
[WhiteElo "2727"]
[BlackElo "2556"]
[TimeControl "180+1"]
[EndTime "8:56:33 PDT"]
[Termination "ValentinDragnev won on time"]

1. d4 {[%clk 0:03:00.9]} 1... d5 {[%clk 0:03:00.4]} 2. c4 {[%clk 0:03:00.8]}
2... e6 {[%clk 0:03:01]} 3. Nf3 {[%clk 0:03:00]} 3... Nf6 {[%clk 0:02:59.5]} 4.
g3 {[%clk 0:03:00.5]} 4... h6 {[%clk 0:02:59.5]} 5. Bg2 {[%clk 0:03:00.3]} 5...
Bd6 {[%clk 0:03:00.1]} 6. O-O {[%clk 0:03:00.3]} 6... O-O {[%clk 0:03:00.7]} 7.
Qc2 {[%clk 0:02:56.5]} 7... b6 {[%clk 0:03:00.5]} 8. Rd1 {[%clk 0:02:51]} 8...
Bb7 {[%clk 0:02:58.4]} 9. b3 {[%clk 0:02:50]} 9... Nbd7 {[%clk 0:02:57]} 10. Bb2
{[%clk 0:02:50.3]} 10... c5 {[%clk 0:02:48.4]} 11. dxc5 {[%clk 0:02:49.3]} 11...
bxc5 {[%clk 0:02:48.2]} 12. cxd5 {[%clk 0:02:47.5]} 12... exd5 {[%clk
0:02:48.1]} 13. Nbd2 {[%clk 0:02:42.3]} 13... Re8 {[%clk 0:02:45.1]} 14. Nc4
{[%clk 0:02:37.6]} 14... Bf8 {[%clk 0:02:35.8]} 15. Nce5 {[%clk 0:02:37.3]}
15... Nxe5 {[%clk 0:02:26.3]} 16. Nxe5 {[%clk 0:02:37.3]} 16... Qb6 {[%clk
0:02:17]} 17. Rac1 {[%clk 0:02:31.5]} 17... a5 {[%clk 0:02:11.7]} 18. Nd3 {[%clk
0:02:28.2]} 18... Rac8 {[%clk 0:01:56.8]} 19. Bxf6 {[%clk 0:02:25.1]} 19... Qxf6
{[%clk 0:01:54]} 20. Nf4 {[%clk 0:02:25.7]} 20... Ba6 {[%clk 0:01:14.3]} 21.
Nxd5 {[%clk 0:02:23.4]} 21... Qe5 {[%clk 0:01:09.2]} 22. e3 {[%clk 0:02:23.3]}
22... c4 {[%clk 0:01:06.8]} 23. Nb6 {[%clk 0:01:59.1]} 23... cxb3 {[%clk
0:00:56]} 24. Qxb3 {[%clk 0:02:00]} 24... Rxc1 {[%clk 0:00:51.1]} 25. Rxc1
{[%clk 0:02:00.7]} 25... Rd8 {[%clk 0:00:44.9]} 26. Bd5 {[%clk 0:01:42.3]} 26...
Kh8 {[%clk 0:00:12.7]} 27. Bxf7 {[%clk 0:01:16.9]} 27... Bc5 {[%clk 0:00:12.8]}
28. Nd5 {[%clk 0:01:02.1]} 28... Rf8 {[%clk 0:00:12.2]} 29. Rxc5 {[%clk
0:01:00.8]} 29... Rxf7 {[%clk 0:00:10.4]} 30. Qc3 {[%clk 0:00:26.9]} 30... Qb8
{[%clk 0:00:06.3]} 31. Nf4 {[%clk 0:00:18.6]} 31... Qb1+ {[%clk 0:00:05.1]} 32.
Qc1 {[%clk 0:00:19.2]} 32... Qb7 {[%clk 0:00:05.2]} 33. Rd5 {[%clk 0:00:11.9]}
33... Kh7 {[%clk 0:00:03.3]} 34. Qc2+ {[%clk 0:00:11.5]} 34... Kg8 {[%clk
0:00:03.5]} 35. Rd8+ {[%clk 0:00:10.7]} 35... Rf8 {[%clk 0:00:03.6]} 36. Rxf8+
{[%clk 0:00:10.5]} 36... Kxf8 {[%clk 0:00:03.2]} 37. Ne6+ {[%clk 0:00:09.1]}
37... Kg8 {[%clk 0:00:03.4]} 38. Nc5 {[%clk 0:00:08.8]} 38... Qc7 {[%clk
0:00:03.1]} 39. Qb3+ {[%clk 0:00:08.5]} 39... Kh7 {[%clk 0:00:03]} 40. Qb1+
{[%clk 0:00:06.1]} 40... Kg8 {[%clk 0:00:02.7]} 41. Nxa6 {[%clk 0:00:06.4]}
41... Qc6 {[%clk 0:00:03]} 42. Qb8+ {[%clk 0:00:05.6]} 42... Kh7 {[%clk
0:00:02.8]} 43. Qb1+ {[%clk 0:00:06.2]} 43... Kg8 {[%clk 0:00:02]} 44. Nb8
{[%clk 0:00:06.5]} 44... Qf3 {[%clk 0:00:02.6]} 45. Nd7 {[%clk 0:00:05.8]} 45...
Kh8 {[%clk 0:00:02.2]} 46. Qb8+ {[%clk 0:00:05.2]} 46... Kh7 {[%clk 0:00:02.7]}
47. Nf8+ {[%clk 0:00:05.8]} 47... Kg8 {[%clk 0:00:02.5]} 48. Ne6+ {[%clk
0:00:06.5]} 48... Kh7 {[%clk 0:00:03.2]} 49. Qb1+ {[%clk 0:00:06.4]} 49... Kg8
{[%clk 0:00:02.7]} 50. Nd4 {[%clk 0:00:07]} 50... Qe2 {[%clk 0:00:02.9]} 51.
Nxe2 {[%clk 0:00:06.8]} 1-0

[Event "Early-Titled-Tuesday-Blitz-April-02-2024"]
[Site "Chess.com"]
[Date "2024.04.02"]
[Round "5"]
[White "Egor_Koshulyan"]
[Black "Art10ECHR"]
[Result "1-0"]
[WhiteElo "2739"]
[BlackElo "2524"]
[TimeControl "180+1"]
[EndTime "8:56:35 PDT"]
[Termination "Egor_Koshulyan won on time"]

1. e4 {[%clk 0:03:00.9]} 1... c5 {[%clk 0:02:59.1]} 2. Nf3 {[%clk 0:03:01.4]}
2... e6 {[%clk 0:02:59.1]} 3. b3 {[%clk 0:03:01]} 3... b6 {[%clk 0:02:58.5]} 4.
Bb2 {[%clk 0:03:01.2]} 4... Bb7 {[%clk 0:02:59.1]} 5. d3 {[%clk 0:03:01.7]} 5...
Nc6 {[%clk 0:02:57.9]} 6. g3 {[%clk 0:03:01.8]} 6... Nf6 {[%clk 0:02:57]} 7. Bg2
{[%clk 0:03:02]} 7... Be7 {[%clk 0:02:57.5]} 8. O-O {[%clk 0:03:02.4]} 8... O-O
{[%clk 0:02:58.1]} 9. Nbd2 {[%clk 0:03:03]} 9... d5 {[%clk 0:02:58.4]} 10. Re1
{[%clk 0:03:02.2]} 10... Qc7 {[%clk 0:02:55.8]} 11. e5 {[%clk 0:02:54.7]} 11...
Nd7 {[%clk 0:02:55.8]} 12. Nf1 {[%clk 0:02:55.2]} 12... b5 {[%clk 0:02:51.9]}
13. h4 {[%clk 0:02:53.5]} 13... a5 {[%clk 0:02:45.7]} 14. N1h2 {[%clk
0:02:53.7]} 14... a4 {[%clk 0:02:42.9]} 15. Qe2 {[%clk 0:02:51.6]} 15... a3
{[%clk 0:02:42.7]} 16. Bc1 {[%clk 0:02:51.2]} 16... Rfc8 {[%clk 0:02:35.6]} 17.
Bf4 {[%clk 0:02:50.3]} 17... b4 {[%clk 0:02:18.3]} 18. Ng4 {[%clk 0:02:50.1]}
18... Bf8 {[%clk 0:02:16.1]} 19. h5 {[%clk 0:02:41.6]} 19... h6 {[%clk
0:02:15.9]} 20. Qd2 {[%clk 0:02:39.4]} 20... Qd8 {[%clk 0:02:12.4]} 21. Ne3
{[%clk 0:02:20]} 21... Nd4 {[%clk 0:02:08.3]} 22. Nh2 {[%clk 0:02:13.8]} 22...
Nb5 {[%clk 0:01:59]} 23. g4 {[%clk 0:02:08.7]} 23... Nc3 {[%clk 0:01:56.9]} 24.
Nef1 {[%clk 0:02:02.4]} 24... Be7 {[%clk 0:01:47.2]} 25. Bg3 {[%clk 0:01:49]}
25... Ra7 {[%clk 0:01:41.7]} 26. f4 {[%clk 0:01:48.1]} 26... c4 {[%clk 0:01:41]}
27. f5 {[%clk 0:01:44.8]} 27... Bg5 {[%clk 0:01:38.7]} 28. Qf2 {[%clk
0:01:41.1]} 28... cxd3 {[%clk 0:01:33.3]} 29. Qxa7 {[%clk 0:01:38.9]} 29... d2
{[%clk 0:01:16]} 30. Qxb7 {[%clk 0:00:56.1]} 30... dxe1=Q {[%clk 0:01:09.8]} 31.
Rxe1 {[%clk 0:00:57]} 31... Rb8 {[%clk 0:01:06]} 32. Qa7 {[%clk 0:00:54.1]}
32... Nxa2 {[%clk 0:01:04.2]} 33. Nf3 {[%clk 0:00:54.5]} 33... Be7 {[%clk
0:01:01.5]} 34. Bf2 {[%clk 0:00:47.6]} 34... Nc3 {[%clk 0:00:55.4]} 35. fxe6
{[%clk 0:00:33.9]} 35... fxe6 {[%clk 0:00:53.4]} 36. Nd4 {[%clk 0:00:33.8]}
36... Bc5 {[%clk 0:00:44.7]} 37. Qa6 {[%clk 0:00:33.8]} 37... Ra8 {[%clk
0:00:42]} 38. Qxe6+ {[%clk 0:00:33.6]} 38... Kh8 {[%clk 0:00:40.3]} 39. Bxd5
{[%clk 0:00:28.7]} 39... Nb6 {[%clk 0:00:25.3]} 40. Bxa8 {[%clk 0:00:26]} 40...
Qxa8 {[%clk 0:00:24]} 41. Nf5 {[%clk 0:00:18.8]} 41... Bxf2+ {[%clk 0:00:19.8]}
42. Kxf2 {[%clk 0:00:19.7]} 42... Nbd5 {[%clk 0:00:18.1]} 43. Qf7 {[%clk
0:00:04.6]} 43... Qg8 {[%clk 0:00:14]} 44. Qxg8+ {[%clk 0:00:04.6]} 44... Kxg8
{[%clk 0:00:14.9]} 45. Ra1 {[%clk 0:00:05.1]} 45... Kf7 {[%clk 0:00:10.9]} 46.
N1e3 {[%clk 0:00:05.7]} 46... Nf4 {[%clk 0:00:09.5]} 47. Nc4 {[%clk 0:00:05.3]}
47... Ke6 {[%clk 0:00:08.9]} 48. Nxa3 {[%clk 0:00:05.9]} 48... bxa3 {[%clk
0:00:08.4]} 49. Rxa3 {[%clk 0:00:06.8]} 49... Kxe5 {[%clk 0:00:09]} 50. Nxg7
{[%clk 0:00:07.5]} 50... Ne4+ {[%clk 0:00:08.6]} 51. Ke3 {[%clk 0:00:07.3]}
51... Nd5+ {[%clk 0:00:09.2]} 52. Kd3 {[%clk 0:00:07.8]} 52... Nc5+ {[%clk
0:00:09.1]} 53. Kc4 {[%clk 0:00:07.7]} 53... Ne4 {[%clk 0:00:08.1]} 54. Ra5
{[%clk 0:00:08]} 54... Nd6+ {[%clk 0:00:07.1]} 55. Kd3 {[%clk 0:00:07.6]} 55...
Ne4 {[%clk 0:00:02.8]} 56. Nf5 {[%clk 0:00:07]} 56... Nf2+ {[%clk 0:00:01.4]}
57. Ke2 {[%clk 0:00:07.2]} 57... Nxg4 {[%clk 0:00:01.1]} 58. Ne7 {[%clk
0:00:06.6]} 1-0

[Event "Early-Titled-Tuesday-Blitz-April-02-2024"]
[Site "Chess.com"]
[Date "2024.04.02"]
[Round "5"]
[White "Predo63"]
[Black "SAInt_666"]
[Result "1/2-1/2"]
[WhiteElo "2524"]
[BlackElo "2703"]
[TimeControl "180+1"]
[EndTime "8:56:37 PDT"]
[Termination "Game drawn - insufficient material"]

1. d4 {[%clk 0:03:00.9]} 1... d5 {[%clk 0:02:58.4]} 2. Bf4 {[%clk 0:03:00.9]}
2... Nf6 {[%clk 0:02:57.9]} 3. e3 {[%clk 0:03:01.3]} 3... e6 {[%clk 0:02:57.9]}
4. Nd2 {[%clk 0:03:00.7]} 4... Bd6 {[%clk 0:02:57.8]} 5. Bg3 {[%clk 0:03:00.1]}
5... O-O {[%clk 0:02:57.7]} 6. Ngf3 {[%clk 0:03:00.4]} 6... c5 {[%clk
0:02:57.8]} 7. c3 {[%clk 0:03:00.2]} 7... c4 {[%clk 0:02:54.8]} 8. b4 {[%clk
0:02:54.8]} 8... Qc7 {[%clk 0:02:43]} 9. a4 {[%clk 0:02:53.2]} 9... Nc6 {[%clk
0:02:42.1]} 10. Bxd6 {[%clk 0:02:52.3]} 10... Qxd6 {[%clk 0:02:42.1]} 11. Be2
{[%clk 0:02:53.2]} 11... e5 {[%clk 0:02:01.2]} 12. dxe5 {[%clk 0:02:52.2]} 12...
Nxe5 {[%clk 0:02:02.1]} 13. Nxe5 {[%clk 0:02:52.2]} 13... Qxe5 {[%clk
0:01:57.2]} 14. Qc1 {[%clk 0:02:52.4]} 14... Bg4 {[%clk 0:01:49.4]} 15. Nf3
{[%clk 0:02:50.9]} 15... Qe7 {[%clk 0:01:46.2]} 16. O-O {[%clk 0:02:49.6]} 16...
Rad8 {[%clk 0:01:45.4]} 17. Rd1 {[%clk 0:02:48.7]} 17... Rfe8 {[%clk 0:01:45.7]}
18. Rd4 {[%clk 0:02:48.8]} 18... Bh5 {[%clk 0:01:42.4]} 19. Qb2 {[%clk
0:02:47.6]} 19... Bg6 {[%clk 0:01:25.2]} 20. a5 {[%clk 0:02:45.9]} 20... h6
{[%clk 0:01:23.6]} 21. Rad1 {[%clk 0:02:45.4]} 21... Be4 {[%clk 0:01:23.4]} 22.
h3 {[%clk 0:02:29.8]} 22... g5 {[%clk 0:01:22]} 23. Nh2 {[%clk 0:02:28.8]} 23...
Kg7 {[%clk 0:01:18.4]} 24. Qd2 {[%clk 0:02:22.1]} 24... Rc8 {[%clk 0:01:16.2]}
25. Bg4 {[%clk 0:02:20.9]} 25... Rc6 {[%clk 0:01:13.7]} 26. Be2 {[%clk
0:02:20.4]} 26... Re6 {[%clk 0:01:08.8]} 27. Ra1 {[%clk 0:02:14.6]} 27... Re5
{[%clk 0:01:04.9]} 28. Qb2 {[%clk 0:02:13.5]} 28... Bg6 {[%clk 0:01:03.6]} 29.
Bf3 {[%clk 0:02:11.1]} 29... Ne4 {[%clk 0:00:59.2]} 30. Rad1 {[%clk 0:02:07.9]}
30... Rd8 {[%clk 0:00:38.9]} 31. Ng4 {[%clk 0:02:03.6]} 31... Re6 {[%clk
0:00:37.2]} 32. Rxd5 {[%clk 0:01:47.5]} 32... Rxd5 {[%clk 0:00:37.5]} 33. Rxd5
{[%clk 0:01:47.2]} 33... h5 {[%clk 0:00:38.1]} 34. Nh2 {[%clk 0:01:46.7]} 34...
Rd6 {[%clk 0:00:35.2]} 35. Bxe4 {[%clk 0:01:40.4]} 35... Bxe4 {[%clk 0:00:34.5]}
36. Rxd6 {[%clk 0:01:39.6]} 36... Qxd6 {[%clk 0:00:35.4]} 37. Qc1 {[%clk
0:01:39.2]} 37... Qd3 {[%clk 0:00:31.1]} 38. Nf1 {[%clk 0:01:38.3]} 38... Bc6
{[%clk 0:00:18.2]} 39. Qd2 {[%clk 0:01:35]} 39... Kf6 {[%clk 0:00:11.9]} 40. f3
{[%clk 0:01:33.4]} 40... h4 {[%clk 0:00:10.9]} 41. Qxd3 {[%clk 0:01:30]} 41...
cxd3 {[%clk 0:00:11.8]} 42. Nd2 {[%clk 0:01:29.6]} 42... Ke5 {[%clk 0:00:12.4]}
43. Kf2 {[%clk 0:01:29.9]} 43... f5 {[%clk 0:00:12.3]} 44. g3 {[%clk 0:01:29.7]}
44... hxg3+ {[%clk 0:00:07.1]} 45. Kxg3 {[%clk 0:01:29.8]} 45... Bd5 {[%clk
0:00:06.6]} 46. f4+ {[%clk 0:01:28.4]} 46... gxf4+ {[%clk 0:00:07.5]} 47. exf4+
{[%clk 0:01:28.3]} 47... Kf6 {[%clk 0:00:07.7]} 48. Kf2 {[%clk 0:01:27.3]} 48...
Kg6 {[%clk 0:00:08.3]} 49. Ke3 {[%clk 0:01:27.6]} 49... Be4 {[%clk 0:00:06.7]}
50. Kf2 {[%clk 0:01:24.3]} 50... Kh5 {[%clk 0:00:05]} 51. Kg3 {[%clk 0:01:24.7]}
51... Bd5 {[%clk 0:00:04.3]} 52. c4 {[%clk 0:01:22.1]} 52... Bc6 {[%clk
0:00:04.2]} 53. b5 {[%clk 0:01:18.2]} 53... Be8 {[%clk 0:00:04.5]} 54. Kf3
{[%clk 0:01:16]} 54... Kh4 {[%clk 0:00:04.4]} 55. Ke3 {[%clk 0:01:16.1]} 55...
Kg3 {[%clk 0:00:04.2]} 56. h4 {[%clk 0:01:15.1]} 56... b6 {[%clk 0:00:03.4]} 57.
a6 {[%clk 0:01:12]} 57... Kxh4 {[%clk 0:00:02.7]} 58. Kxd3 {[%clk 0:01:11.7]}
58... Kg3 {[%clk 0:00:03.2]} 59. Ke3 {[%clk 0:01:12.1]} 59... Bf7 {[%clk
0:00:03.8]} 60. c5 {[%clk 0:01:08.5]} 60... bxc5 {[%clk 0:00:04.7]} 61. b6
{[%clk 0:01:08.8]} 61... axb6 {[%clk 0:00:05.6]} 62. a7 {[%clk 0:01:09.2]} 62...
Bd5 {[%clk 0:00:06.3]} 63. Nc4 {[%clk 0:01:09.3]} 63... b5 {[%clk 0:00:04.3]}
64. Nb6 {[%clk 0:01:08.9]} 64... Bb7 {[%clk 0:00:05]} 65. a8=Q {[%clk
0:01:08.4]} 65... Bxa8 {[%clk 0:00:05.6]} 66. Nxa8 {[%clk 0:01:09]} 66... c4
{[%clk 0:00:02.9]} 67. Nb6 {[%clk 0:01:07.7]} 67... c3 {[%clk 0:00:03.4]} 68.
Nd5 {[%clk 0:01:07.8]} 68... c2 {[%clk 0:00:02.8]} 69. Kd2 {[%clk 0:01:07.9]}
69... Kf3 {[%clk 0:00:03.5]} 70. Kxc2 {[%clk 0:01:05.9]} 70... Ke4 {[%clk
0:00:04.1]} 71. Nc3+ {[%clk 0:01:05]} 71... Kxf4 {[%clk 0:00:03.9]} 72. Nxb5
{[%clk 0:01:05.9]} 72... Ke3 {[%clk 0:00:04.7]} 73. Kd1 {[%clk 0:00:59.8]} 73...
f4 {[%clk 0:00:05.6]} 74. Ke1 {[%clk 0:01:00.1]} 74... f3 {[%clk 0:00:06.5]} 75.
Kf1 {[%clk 0:01:00.5]} 75... f2 {[%clk 0:00:07.4]} 76. Nc3 {[%clk 0:01:00.1]}
76... Kf3 {[%clk 0:00:08.3]} 77. Nd1 {[%clk 0:01:00.2]} 77... Kg3 {[%clk
0:00:08.7]} 78. Nxf2 {[%clk 0:01:01.1]} 1/2-1/2

[Event "Early-Titled-Tuesday-Blitz-April-02-2024"]
[Site "Chess.com"]
[Date "2024.04.02"]
[Round "5"]
[White "teresin05"]
[Black "Devil_Sun"]
[Result "1-0"]
[WhiteElo "2247"]
[BlackElo "2626"]
[TimeControl "180+1"]
[EndTime "8:56:38 PDT"]
[Termination "teresin05 won by resignation"]

1. e4 {[%clk 0:03:00.9]} 1... e6 {[%clk 0:02:57.8]} 2. d4 {[%clk 0:02:58.4]}
2... d5 {[%clk 0:02:58.7]} 3. Nc3 {[%clk 0:02:58.8]} 3... Bb4 {[%clk 0:02:57.8]}
4. e5 {[%clk 0:02:58.4]} 4... c5 {[%clk 0:02:58]} 5. Qg4 {[%clk 0:02:58.1]} 5...
Ne7 {[%clk 0:02:52]} 6. dxc5 {[%clk 0:02:56.7]} 6... Bxc3+ {[%clk 0:02:51.1]} 7.
bxc3 {[%clk 0:02:55.6]} 7... Qc7 {[%clk 0:02:51.5]} 8. Qxg7 {[%clk 0:02:42.5]}
8... Rg8 {[%clk 0:02:51]} 9. Qf6 {[%clk 0:02:42.3]} 9... Nd7 {[%clk 0:02:49.1]}
10. Qf4 {[%clk 0:02:39]} 10... Qxc5 {[%clk 0:02:48]} 11. Bd2 {[%clk 0:02:37.1]}
11... Ng6 {[%clk 0:02:44.8]} 12. Qh6 {[%clk 0:02:29.8]} 12... Ndxe5 {[%clk
0:02:43.1]} 13. Qxh7 {[%clk 0:02:24]} 13... Rh8 {[%clk 0:02:40.8]} 14. Qg7
{[%clk 0:02:12.5]} 14... Bd7 {[%clk 0:02:32.2]} 15. Qf6 {[%clk 0:02:09.2]} 15...
Ng4 {[%clk 0:01:57.4]} 16. Qd4 {[%clk 0:01:54.8]} 16... Qxd4 {[%clk 0:01:37.6]}
17. cxd4 {[%clk 0:01:55.7]} 17... O-O-O {[%clk 0:01:33.9]} 18. h3 {[%clk
0:01:28.9]} 18... Nf6 {[%clk 0:01:24.9]} 19. Nf3 {[%clk 0:00:46.3]} 19... Ne4
{[%clk 0:00:53.7]} 20. Bd3 {[%clk 0:00:36.9]} 20... Bc6 {[%clk 0:00:39.8]} 21.
Ng5 {[%clk 0:00:31.9]} 21... Nxg5 {[%clk 0:00:33.8]} 22. Bxg5 {[%clk 0:00:32.8]}
22... Rdg8 {[%clk 0:00:34]} 23. Be3 {[%clk 0:00:31.9]} 23... Nh4 {[%clk
0:00:17.7]} 24. g3 {[%clk 0:00:28.2]} 24... Nf3+ {[%clk 0:00:16.5]} 25. Ke2
{[%clk 0:00:27.5]} 25... Ng5 {[%clk 0:00:16.5]} 26. h4 {[%clk 0:00:20.3]} 26...
Ne4 {[%clk 0:00:16.3]} 27. Bxe4 {[%clk 0:00:15.3]} 27... dxe4 {[%clk 0:00:16.2]}
28. Rhe1 {[%clk 0:00:12.7]} 28... Bb5+ {[%clk 0:00:16]} 29. Kd2 {[%clk
0:00:12.1]} 29... Rd8 {[%clk 0:00:15.4]} 30. c4 {[%clk 0:00:12.2]} 30... Bxc4
{[%clk 0:00:15.5]} 31. Rac1 {[%clk 0:00:11.6]} 31... b5 {[%clk 0:00:16.4]} 32.
Kc3 {[%clk 0:00:10.8]} 32... Rd5 {[%clk 0:00:15.7]} 33. Kb4 {[%clk 0:00:10.9]}
33... Kb7 {[%clk 0:00:16.2]} 34. Bf4 {[%clk 0:00:09.7]} 34... Kb6 {[%clk
0:00:16.5]} 35. Be5 {[%clk 0:00:09.5]} 35... a5+ {[%clk 0:00:17.4]} 36. Kc3
{[%clk 0:00:09.1]} 36... Rc8 {[%clk 0:00:18.3]} 37. Kb2 {[%clk 0:00:08.2]} 37...
Rc6 {[%clk 0:00:18]} 38. Rxe4 {[%clk 0:00:08.7]} 38... b4 {[%clk 0:00:18.2]} 39.
Rf4 {[%clk 0:00:09.1]} 39... Bb5 {[%clk 0:00:18.5]} 40. Rxc6+ {[%clk 0:00:07.3]}
40... Bxc6 {[%clk 0:00:18.8]} 41. Rxf7 {[%clk 0:00:07.9]} 41... a4 {[%clk
0:00:19.7]} 42. h5 {[%clk 0:00:08.3]} 42... Rd8 {[%clk 0:00:19.4]} 43. h6 {[%clk
0:00:08.3]} 43... a3+ {[%clk 0:00:20.1]} 44. Kb3 {[%clk 0:00:08.1]} 44... Ka5
{[%clk 0:00:19.6]} 45. h7 {[%clk 0:00:06.3]} 45... Rc8 {[%clk 0:00:19.6]} 46.
Rc7 {[%clk 0:00:03.3]} 46... Ba4+ {[%clk 0:00:17.5]} 47. Kc4 {[%clk 0:00:03.2]}
47... b3 {[%clk 0:00:14.7]} 48. axb3 {[%clk 0:00:03]} 48... a2 {[%clk
0:00:14.8]} 49. Rxc8 {[%clk 0:00:02.5]} 49... Bb5+ {[%clk 0:00:15.3]} 50. Kc5
{[%clk 0:00:02.4]} 50... a1=Q {[%clk 0:00:16.2]} 51. Ra8+ {[%clk 0:00:03]} 51...
Ba6 {[%clk 0:00:16.3]} 52. h8=Q {[%clk 0:00:03.7]} 52... Qc3+ {[%clk 0:00:15.5]}
53. Kd6 {[%clk 0:00:04.3]} 53... Qb4+ {[%clk 0:00:15.6]} 54. Kxe6 {[%clk
0:00:04]} 54... Qb6+ {[%clk 0:00:15.8]} 55. Bd6 {[%clk 0:00:03.8]} 55... Qxb3+
{[%clk 0:00:15.6]} 56. d5 {[%clk 0:00:04.3]} 56... Qd3 {[%clk 0:00:10.7]} 57.
Qa1+ {[%clk 0:00:04.5]} 1-0

[Event "Early-Titled-Tuesday-Blitz-April-02-2024"]
[Site "Chess.com"]
[Date "2024.04.02"]
[Round "5"]
[White "RuperezA"]
[Black "GnowReopard"]
[Result "0-1"]
[WhiteElo "2531"]
[BlackElo "2766"]
[TimeControl "180+1"]
[EndTime "8:56:42 PDT"]
[Termination "GnowReopard won by resignation"]

1. e4 {[%clk 0:03:00.9]} 1... e6 {[%clk 0:02:59.1]} 2. b3 {[%clk 0:02:57]} 2...
d5 {[%clk 0:02:56.3]} 3. Bb2 {[%clk 0:02:57.3]} 3... dxe4 {[%clk 0:02:53.5]} 4.
Nc3 {[%clk 0:02:57.5]} 4... Nf6 {[%clk 0:02:53.2]} 5. Qe2 {[%clk 0:02:57.1]}
5... Nbd7 {[%clk 0:02:45.9]} 6. Nxe4 {[%clk 0:02:55.6]} 6... Be7 {[%clk
0:02:45.4]} 7. O-O-O {[%clk 0:02:54.3]} 7... O-O {[%clk 0:02:40.5]} 8. g4 {[%clk
0:02:51.7]} 8... a5 {[%clk 0:02:31.6]} 9. a4 {[%clk 0:02:46.7]} 9... Nxe4 {[%clk
0:02:19.5]} 10. Qxe4 {[%clk 0:02:43.8]} 10... Nc5 {[%clk 0:02:19.3]} 11. Qe3
{[%clk 0:02:40.4]} 11... b6 {[%clk 0:02:07.9]} 12. Bg2 {[%clk 0:02:31.4]} 12...
Bb7 {[%clk 0:02:06.6]} 13. Nf3 {[%clk 0:02:05.5]} 13... Qe8 {[%clk 0:01:36.3]}
14. d4 {[%clk 0:01:39.5]} 14... Na6 {[%clk 0:01:32.9]} 15. h4 {[%clk 0:01:16.9]}
15... b5 {[%clk 0:01:33.1]} 16. Qd3 {[%clk 0:00:47.8]} 16... Nb4 {[%clk
0:01:12.3]} 17. Qxb5 {[%clk 0:00:45.7]} 17... Bc6 {[%clk 0:01:12.1]} 18. Qe2
{[%clk 0:00:37]} 18... Rb8 {[%clk 0:01:11.2]} 19. Rhe1 {[%clk 0:00:21.9]} 19...
Bxa4 {[%clk 0:01:10.2]} 20. Ng5 {[%clk 0:00:17.5]} 20... Bc6 {[%clk 0:00:55.7]}
21. Bxc6 {[%clk 0:00:16]} 21... Qxc6 {[%clk 0:00:56.6]} 22. Qe4 {[%clk
0:00:15.6]} 22... Qxe4 {[%clk 0:00:45.5]} 23. Nxe4 {[%clk 0:00:16.5]} 23... Nd5
{[%clk 0:00:19.8]} 24. h5 {[%clk 0:00:14.5]} 24... h6 {[%clk 0:00:17]} 25. Rd3
{[%clk 0:00:09]} 25... a4 {[%clk 0:00:16.3]} 26. bxa4 {[%clk 0:00:09]} 26... Ra8
{[%clk 0:00:16.5]} 27. c4 {[%clk 0:00:08.7]} 27... Nb6 {[%clk 0:00:15.2]} 28. c5
{[%clk 0:00:08]} 28... Nxa4 {[%clk 0:00:15.7]} 29. d5 {[%clk 0:00:05.8]} 29...
exd5 {[%clk 0:00:09.9]} 30. Rxd5 {[%clk 0:00:06.7]} 30... Rfb8 {[%clk
0:00:09.8]} 31. Bd4 {[%clk 0:00:05.4]} 31... Rb4 {[%clk 0:00:08.2]} 32. Rd7
{[%clk 0:00:05.3]} 32... Rc4+ {[%clk 0:00:08]} 33. Kd2 {[%clk 0:00:04.7]} 33...
Bxc5 {[%clk 0:00:07.6]} 34. Nxc5 {[%clk 0:00:04.8]} 34... Nxc5 {[%clk
0:00:08.5]} 35. Bxc5 {[%clk 0:00:04.8]} 35... Rxc5 {[%clk 0:00:08.9]} 36. Ree7
{[%clk 0:00:05.7]} 36... Ra2+ {[%clk 0:00:08.3]} 37. Ke3 {[%clk 0:00:05.8]}
37... Rc3+ {[%clk 0:00:08.7]} 38. Kd4 {[%clk 0:00:04.8]} 38... Rf3 {[%clk
0:00:08.9]} 39. Rxc7 {[%clk 0:00:03.7]} 39... Raxf2 {[%clk 0:00:08.4]} 40. Re8+
{[%clk 0:00:04.3]} 40... Kh7 {[%clk 0:00:08.8]} 41. Rcc8 {[%clk 0:00:05.2]}
41... Rf4+ {[%clk 0:00:06.8]} 42. Ke5 {[%clk 0:00:04]} 42... f6+ {[%clk
0:00:05.2]} 43. Kd5 {[%clk 0:00:02.6]} 43... Rd2+ {[%clk 0:00:05.8]} 44. Ke6
{[%clk 0:00:01.5]} 44... Re4+ {[%clk 0:00:05.9]} 45. Kf7 {[%clk 0:00:02.4]}
45... Rd7+ {[%clk 0:00:05.9]} 46. Kf8 {[%clk 0:00:02.3]} 46... Rxe8+ {[%clk
0:00:06]} 47. Rxe8 {[%clk 0:00:03.2]} 47... Rd4 {[%clk 0:00:05.5]} 48. Kf7
{[%clk 0:00:02.7]} 48... Rxg4 {[%clk 0:00:06]} 49. Rf8 {[%clk 0:00:02.5]} 49...
Rg5 {[%clk 0:00:06.5]} 50. Rg8 {[%clk 0:00:02.9]} 50... f5 {[%clk 0:00:06.8]}
51. Rf8 {[%clk 0:00:03.4]} 51... Rxh5 {[%clk 0:00:07]} 52. Ke6 {[%clk 0:00:04]}
52... Rg5 {[%clk 0:00:07.9]} 53. Rf7 {[%clk 0:00:04.4]} 53... Kg6 {[%clk
0:00:08.1]} 54. Rf8 {[%clk 0:00:04.8]} 54... Rg4 {[%clk 0:00:08.1]} 0-1